bitfinex/quotes_SOLUSD_20241220
["timestamp","ask_amount","ask_price","bid_price","bid_amount"]
[1734727857177,26.57335009,190.21,190.11,46.57335009]
[1734727858252,26.57335009,190.21,190.13,26.57335009]
[1734727858754,26.57335009,190.23,190.13,26.57335009]
[1734727859054,26.57335009,190.23,190.15,26.57335009]
[1734727859572,26.57335009,190.25,190.17,26.57335009]
[1734727860382,26.57335009,190.27,190.19,26.57335009]
[1734727861477,26.57335009,190.29,190.2,1.5382]
[1734727861862,26.57335009,190.25,190.2,1.5382]
[1734727862062,26.57335009,190.25,190.17,26.57335009]
[1734727862271,26.57335009,190.3,190.15,48.10045009]
[1734727862272,26.57335009,190.23,190.15,48.10045009]
[1734727863157,26.57335009,190.27,190.19,26.57335009]
[1734727864297,26.57335009,190.27,190.17,46.57335009]
[1734727864598,6.6141,190.32,190.17,46.57335009]
[1734727864599,26.57335009,190.25,190.17,46.57335009]
[1734727864804,26.57335009,190.27,190.17,20.0]
[1734727864967,19.75,190.32,190.21,26.57335009]
[1734727865291,26.57335009,190.3,190.21,26.57335009]
[1734727865584,26.57335009,190.26,190.19,26.57335009]
[1734727865765,26.57335009,190.28,190.19,26.57335009]
[1734727866079,26.57335009,190.3,190.21,26.57335009]
[1734727866459,26.57335009,190.34,190.25,26.57335009]
[1734727866675,26.57335009,190.34,190.27,26.57335009]
[1734727866879,26.57335009,190.34,190.25,1.6488]
[1734727866880,26.57335009,190.32,190.25,28.22215009]
[1734727867381,26.57335009,190.32,190.25,1.6488]
[1734727867771,26.57335009,190.32,190.23,26.57335009]
[1734727868272,26.57335009,190.3,190.23,26.57335009]
[1734727868579,26.57335009,190.24,190.17,28.10105009]
[1734727869281,26.57335009,190.24,190.15,26.57335009]
[1734727869587,26.57335009,190.22,190.15,26.57335009]
[1734727870478,23.776884,190.21,190.13,28.12185009]
[1734727870675,26.57335009,190.18,190.13,1.5485]
[1734727870875,26.57335009,190.2,190.13,1.5485]
[1734727871788,6.513,190.26,190.15,26.57335009]
[1734727871789,26.57335009,190.22,190.15,26.57335009]
[1734727871964,26.57335009,190.24,190.15,26.57335009]
[1734727872169,26.57335009,190.22,190.13,28.12185009]
[1734727872467,26.57335009,190.24,190.15,26.57335009]
[1734727872985,33.08635009,190.26,190.17,26.57335009]
[1734727873703,26.57335009,190.26,190.17,26.57335009]
[1734727874464,26.57335009,190.22,190.13,28.12185009]
[1734727874669,26.57335009,190.2,190.13,28.12185009]
[1734727874980,26.57335009,190.18,190.11,26.57335009]
[1734727875869,26.57335009,190.16,190.09,28.10525009]
[1734727876071,26.57335009,190.16,190.09,1.5319]
[1734727876473,26.57335009,190.16,190.09,28.10525009]
[1734727876675,26.57335009,190.2,190.13,26.57335009]
[1734727876986,26.57335009,190.22,190.13,26.57335009]
[1734727877290,26.57335009,190.2,190.13,26.57335009]
[1734727877875,26.57335009,190.18,190.11,26.57335009]
[1734727879902,26.57335009,190.18,190.09,1.5319]
[1734727879903,26.57335009,190.18,190.09,28.10525009]
[1734727880310,26.57335009,190.16,190.09,1.5319]
[1734727880479,26.57335009,190.14,190.05,26.57335009]
[1734727881091,26.57335009,190.1,190.04,1.5319]
[1734727881313,26.57335009,190.08,190.01,26.57335009]
[1734727881475,26.57335009,190.08,189.99,28.10525009]
[1734727881676,26.57335009,190.06,189.99,28.10525009]
[1734727882091,26.57335009,190.1,190.01,26.57335009]
[1734727883791,26.57335009,190.08,190.01,26.57335009]
[1734727884099,26.57335009,190.06,189.99,28.10525009]
[1734727886403,26.57335009,190.08,190.01,26.57335009]
[1734727887999,26.57335009,190.1,190.03,26.57335009]
[1734727888202,26.57335009,190.13,190.05,26.57335009]
[1734727888496,26.57335009,190.13,190.06,26.57335009]
[1734727888698,26.57335009,190.14,190.07,26.57335009]
[1734727888886,26.57335009,190.15,190.07,26.57335009]
[1734727889097,26.57335009,190.14,190.07,26.57335009]
[1734727889303,26.57335009,190.13,190.05,26.57335009]
[1734727889501,26.57335009,190.12,190.05,26.57335009]
[1734727889908,26.57335009,190.14,190.06,26.57335009]
[1734727890391,26.57335009,190.12,190.04,26.57335009]
[1734727891619,6.4235,190.19,190.02,26.57335009]
[1734727891620,26.57335009,190.1,190.02,26.57335009]
[1734727891913,26.57335009,190.08,190.0,26.57335009]
[1734727892803,26.57335009,190.1,190.02,26.57335009]
[1734727893895,26.57335009,190.12,190.04,26.57335009]
[1734727895495,26.57335009,190.14,190.06,26.57335009]
[1734727896423,26.57335009,190.16,190.08,26.57335009]
[1734727896714,26.57335009,190.18,190.1,26.57335009]
[1734727897094,26.57335009,190.2,190.12,26.57335009]
[1734727898019,26.57335009,190.15,190.09,1.5788]
[1734727898225,26.57335009,190.13,190.05,26.57335009]
[1734727898903,26.57335009,190.11,190.04,1.547]
[1734727900269,26.57335009,190.13,190.05,26.57335009]
[1734727901811,26.57335009,190.11,190.04,1.547]
[1734727902337,26.57335009,190.09,190.01,26.57335009]
[1734727902544,26.57335009,190.07,189.99,28.12865009]
[1734727905265,26.57335009,190.05,189.97,27.24954829]
[1734727905548,26.57335009,190.03,189.97,0.6761982]
[1734727905757,26.57335009,190.05,189.97,27.24954829]
[1734727906053,26.57335009,190.07,189.99,26.57335009]
[1734727906427,26.57335009,190.09,190.01,26.57335009]
[1734727906834,26.57335009,190.11,190.03,26.57335009]
[1734727907230,26.57335009,190.13,190.05,26.57335009]
[1734727911991,26.57335009,190.11,190.04,1.6229]
[1734727913100,26.57335009,190.09,189.99,28.23785009]
[1734727913265,26.57335009,190.03,189.97,0.6761982]
[1734727914000,26.57335009,190.05,189.97,27.24954829]
[1734727914179,26.57335009,190.07,189.97,27.24954829]
[1734727915100,6.1415,190.08,189.97,27.24954829]
[1734727915101,26.57335009,190.05,189.97,27.24954829]
[1734727915601,26.57335009,190.07,189.99,26.57335009]
[1734727915767,26.57335009,190.09,190.01,26.57335009]
[1734727917380,26.57335009,190.11,190.03,28.17115009]
[1734727918565,26.57335009,190.09,190.03,1.5978]
[1734727919713,26.57335009,190.11,190.03,28.17115009]
[1734727920319,26.57335009,190.13,190.05,26.57335009]
[1734727920993,26.57335009,190.09,190.03,1.5978]
[1734727921291,26.57335009,190.07,189.99,1.5104]
[1734727922211,26.57335009,190.09,190.01,26.57335009]
[1734727922721,26.57335009,190.13,190.05,26.57335009]
[1734727923188,26.57335009,190.15,190.07,26.57335009]
[1734727923386,26.57335009,190.17,190.09,26.57335009]
[1734727923709,27.8054,190.22,190.13,26.57335009]
[1734727923710,26.57335009,190.21,190.13,26.57335009]
[1734727924010,26.57335009,190.22,190.14,26.57335009]
[1734727924196,32.81295009,190.23,190.15,26.57335009]
[1734727924397,26.57335009,190.23,190.15,26.57335009]
[1734727924597,26.57335009,190.24,190.17,26.57335009]
[1734727924797,26.57335009,190.25,190.18,26.57335009]
[1734727925006,32.81295009,190.28,190.21,26.57335009]
[1734727925308,11.75159017,190.3,190.23,26.57335009]
[1734727925522,13.1328,190.37,190.18,23.776884]
[1734727925710,26.57335009,190.34,190.26,26.57335009]
[1734727926017,26.57335009,190.34,190.27,26.57335009]
[1734727926317,26.57335009,190.37,190.29,26.57335009]
[1734727926694,26.57335009,190.39,190.32,26.57335009]
[1734727926897,26.57335009,190.39,190.23,0.12549]
[1734727926898,26.57335009,190.39,190.31,26.57335009]
[1734727928401,26.57335009,190.39,190.32,26.57335009]
[1734727929210,26.57335009,190.37,190.28,26.57335009]
[1734727929404,26.57335009,190.35,190.26,46.57335009]
[1734727929605,26.57335009,190.33,190.26,46.57335009]
[1734727929815,26.57335009,190.33,190.26,26.57335009]
[1734727930523,26.57335009,190.35,190.26,26.57335009]
[1734727930722,26.57335009,190.37,190.28,26.57335009]
[1734727931027,26.57335009,190.37,190.3,26.57335009]
[1734727932129,26.57335009,190.37,190.28,26.57335009]
[1734727933007,26.57335009,190.37,190.3,26.57335009]
[1734727933832,26.57335009,190.33,190.24,26.57335009]
[1734727934611,26.57335009,190.33,190.26,26.57335009]
[1734727935411,39.70365009,190.4,190.28,26.57335009]
[1734727935412,26.57335009,190.37,190.28,26.57335009]
[1734727935811,26.57335009,190.37,190.3,26.57335009]
[1734727937238,26.57335009,190.39,190.3,26.57335009]
[1734727937433,26.57335009,190.39,190.32,26.57335009]
[1734727937612,26.57335009,190.41,190.34,26.57335009]
[1734727937806,26.57335009,190.41,190.32,26.57335009]
[1734727938326,26.57335009,190.39,190.3,28.13065009]
[1734727938529,24.56158211,190.39,190.3,28.13065009]
[1734727941204,26.57335009,190.37,190.3,28.13065009]
[1734727941608,26.57335009,190.37,190.3,1.5573]
[1734727942127,26.57335009,190.39,190.3,28.13065009]
[1734727942843,26.57335009,190.39,190.32,26.57335009]
[1734727943036,6.3367,190.47,190.36,26.57335009]
[1734727943233,26.57335009,190.44,190.36,26.57335009]
[1734727944447,26.57335009,190.44,190.3,28.91851183]
[1734727944448,26.57335009,190.42,190.34,26.57335009]
[1734727944735,26.57335009,190.4,190.32,26.57335009]
[1734727945229,26.57335009,190.38,190.3,28.13065009]
[1734727947110,26.57335009,190.36,190.28,26.57335009]
[1734727948048,26.57335009,190.32,190.25,1.5083]
[1734727948958,6.1305,190.36,190.2,28.14975009]
[1734727948959,26.57335009,190.28,190.2,28.14975009]
[1734727949155,26.57335009,190.24,190.16,26.57335009]
[1734727949645,26.57335009,190.26,190.18,26.57335009]
[1734727950347,26.57335009,190.22,190.15,1.5589]
[1734727950643,26.57335009,190.18,190.1,49.24312509]
[1734727950821,26.57335009,190.18,190.1,28.19255009]
[1734727951328,26.57335009,190.2,190.1,28.19255009]
[1734727951747,26.57335009,190.2,190.12,26.57335009]
[1734727952037,26.57335009,190.24,190.16,26.57335009]
[1734727952829,26.57335009,190.22,190.14,26.57335009]
[1734727953030,6.0287,190.25,190.12,26.57335009]
[1734727953031,26.57335009,190.2,190.12,26.57335009]
[1734727954433,26.57335009,190.22,190.14,26.57335009]
[1734727954949,29.02644672,191.63,190.18,26.57335009]
[1734727954950,26.57335009,190.26,190.18,26.57335009]
[1734727955549,26.57335009,190.24,190.16,26.57335009]
[1734727955727,26.57335009,190.2,190.12,26.57335009]
[1734727957122,26.57335009,190.22,190.14,26.57335009]
[1734727957327,13.1405,190.26,190.16,26.57335009]
[1734727957328,26.57335009,190.24,190.16,26.57335009]
[1734727958555,26.57335009,190.22,190.1,1.6192]
[1734727958735,26.57335009,190.22,190.14,26.57335009]
[1734727959133,26.57335009,190.22,190.1,28.19255009]
[1734727959134,26.57335009,190.24,190.16,26.57335009]
[1734727960442,26.57335009,190.22,190.14,26.57335009]
[1734727960649,26.57335009,190.22,190.12,26.57335009]
[1734727960829,26.57335009,190.2,190.12,26.57335009]
[1734727962156,26.57335009,190.2,190.1,28.19255009]
[1734727962345,26.57335009,190.2,190.12,26.57335009]
[1734727963661,26.57335009,190.22,190.12,26.57335009]
[1734727964162,26.57335009,190.22,190.14,26.57335009]
[1734727965361,26.57335009,190.22,190.12,26.57335009]
[1734727967766,26.57335009,190.22,190.14,26.57335009]
[1734727968966,26.57335009,190.26,190.18,26.57335009]
[1734727969180,26.57335009,190.22,190.14,26.57335009]
[1734727969349,26.57335009,190.18,190.1,28.19255009]
[1734727969675,26.57335009,190.16,190.1,1.6192]
[1734727970865,26.57335009,190.18,190.1,28.19255009]
[1734727971251,26.57335009,190.16,190.1,1.6192]
[1734727971770,26.57335009,190.18,190.1,28.19255009]
[1734727973655,26.57335009,190.18,190.08,26.57335009]
[1734727974869,26.57335009,190.14,190.06,28.13025009]
[1734727975072,23.776884,190.19,190.02,6.1696]
[1734727975073,26.57335009,190.12,190.04,26.57335009]
[1734727975946,44.7461,190.17,190.04,26.57335009]
[1734727975947,26.57335009,190.14,190.04,26.57335009]
[1734727976169,26.57335009,190.14,190.06,26.57335009]
[1734727977456,26.57335009,190.12,190.05,20.0]
[1734727977653,26.57335009,190.12,190.04,26.57335009]
[1734727978371,26.57335009,190.14,190.04,26.57335009]
[1734727978556,26.57335009,190.14,190.06,26.57335009]
[1734727978757,26.57335009,190.14,190.04,26.57335009]
[1734727979360,26.57335009,190.12,190.04,26.57335009]
[1734727981470,26.57335009,190.1,190.02,28.15385009]
[1734727981666,26.57335009,190.08,190.02,1.5805]
[1734727981864,26.57335009,190.12,190.04,26.57335009]
[1734727982054,26.57335009,190.14,190.06,26.57335009]
[1734727982921,26.57335009,190.16,190.08,26.57335009]
[1734727983379,26.57335009,190.14,190.06,26.57335009]
[1734727983576,21.1608,190.21,190.03,23.776884]
[1734727983757,26.57335009,190.18,190.1,26.57335009]
[1734727984745,26.57335009,190.22,190.14,26.57335009]
[1734727984943,26.57335009,190.22,190.1,26.57335009]
[1734727984944,26.57335009,190.24,190.16,26.57335009]
[1734727985347,26.57335009,190.22,190.14,26.57335009]
[1734727985569,26.57335009,190.22,190.06,14.7843]
[1734727985570,26.57335009,190.2,190.12,26.57335009]
[1734727986061,26.57335009,190.22,190.14,26.57335009]
[1734727987471,26.57335009,190.2,190.12,26.57335009]
[1734727988682,26.57335009,190.18,190.1,26.57335009]
[1734727988877,26.57335009,190.16,190.08,26.57335009]
[1734727990361,26.57335009,190.2,190.12,26.57335009]
[1734727990954,26.57335009,190.18,190.1,26.57335009]
[1734727991660,26.57335009,190.16,190.08,26.57335009]
[1734727992290,26.57335009,190.18,190.08,26.57335009]
[1734727992497,26.57335009,190.18,190.1,26.57335009]
[1734727992964,26.57335009,190.16,190.08,26.57335009]
[1734727993486,26.57335009,190.16,190.06,28.20395009]
[1734727993654,26.57335009,190.13,190.06,1.6306]
[1734727993861,26.57335009,190.15,190.06,28.20395009]
[1734727994480,26.57335009,190.15,190.08,26.57335009]
[1734727994784,16.62047357,190.16,190.08,16.62047357]
[1734727996388,16.62047357,190.14,190.06,18.25107357]
[1734727996977,16.62047357,190.16,190.08,16.62047357]
[1734727997159,16.62047357,190.14,190.06,18.25107357]
[1734727997778,16.62047357,190.12,190.04,16.62047357]
[1734727997965,16.62047357,190.1,190.02,18.17177357]
[1734727998285,16.62047357,190.06,189.98,24.80144498]
[1734727998467,16.62047357,190.06,189.98,8.18097141]
[1734727998670,16.62047357,190.06,189.97,2.2274982]
[1734727999183,16.62047357,190.06,189.98,16.62047357]
[1734728000799,16.62047357,190.06,190.0,16.62047357]
[1734728001091,16.62047357,190.08,190.0,16.62047357]
[1734728003484,16.62047357,190.1,190.02,16.62047357]
[1734728003995,16.62047357,190.08,190.01,20.0]
[1734728004164,16.62047357,190.08,190.0,16.62047357]
[1734728005797,16.62047357,190.06,189.97,2.2274982]
[1734728005975,16.62047357,190.06,189.98,16.62047357]
[1734728006387,16.62047357,190.08,190.0,16.62047357]
[1734728006563,16.62047357,190.1,190.02,16.62047357]
[1734728008496,16.62047357,190.14,190.07,16.62047357]
[1734728008681,16.62047357,190.15,190.08,16.62047357]
[1734728009187,16.62047357,190.16,190.08,16.62047357]
[1734728009373,16.62047357,190.14,190.08,16.62047357]
[1734728010327,16.62047357,190.14,190.06,18.12677357]
[1734728010673,16.62047357,190.16,190.08,16.62047357]
[1734728011371,16.62047357,190.12,190.04,36.62047357]
[1734728012803,16.62047357,190.14,190.06,16.62047357]
[1734728013171,20.0,190.13,190.01,1.6189]
[1734728013398,16.62047357,190.11,190.02,16.62047357]
[1734728013670,16.62047357,190.09,190.02,16.62047357]
[1734728013916,16.62047357,190.07,189.98,16.62047357]
[1734728015104,16.62047357,190.05,189.97,2.3034982]
[1734728015270,16.62047357,190.01,189.97,0.6761982]
[1734728017020,16.62047357,190.05,189.97,0.6761982]
[1734728017900,16.62047357,190.05,189.98,16.62047357]
[1734728018105,16.62047357,190.07,190.0,16.62047357]
[1734728018409,16.62047357,190.09,190.0,16.62047357]
[1734728019387,13.1504,190.11,190.0,16.62047357]
[1734728019388,16.62047357,190.07,190.0,16.62047357]
[1734728020291,16.62047357,190.03,189.97,0.6761982]
[1734728020811,23.96898609,190.02,189.97,0.6761982]
[1734728025034,13.155,190.05,189.97,0.6761982]
[1734728025035,23.96898609,190.0,189.97,0.6761982]
[1734728025528,23.96898609,189.98,189.97,0.6761982]
[1734728026795,23.96898609,189.99,189.97,0.6761982]
[1734728027126,36.936084,189.98,189.97,9.82e-05]
[1734728027337,20.0,189.94,189.86,0.08794064]
[1734728027524,23.96898609,189.88,189.86,0.08794064]
[1734728029633,23.96898609,189.9,189.86,0.08794064]
[1734728029798,23.96898609,189.92,189.86,0.08794064]
[1734728031198,23.96898609,189.9,189.86,0.08794064]
[1734728031739,23.96898609,189.88,189.86,0.08794064]
[1734728034636,13.1643,189.91,189.86,0.08794064]
[1734728034637,23.96898609,189.91,189.86,0.08794064]
[1734728036652,23.96898609,189.93,189.86,0.08794064]
[1734728040353,23.96898609,189.91,189.86,0.08794064]
[1734728040726,23.96898609,189.93,189.86,24.05692673]
[1734728040930,23.96898609,189.93,189.86,25.65082673]
[1734728041448,12.22349328,190.0,189.88,23.96898609]
[1734728041449,23.96898609,189.95,189.88,23.96898609]
[1734728042054,23.96898609,189.97,189.88,23.96898609]
[1734728042256,7.6948,190.01,189.9,23.96898609]
[1734728042257,23.96898609,189.99,189.9,23.96898609]
[1734728042557,23.96898609,189.99,189.91,20.0]
[1734728042737,23.96898609,189.97,189.9,23.96898609]
[1734728043761,23.96898609,189.99,189.92,23.96898609]
[1734728043967,23.96898609,190.01,189.92,23.96898609]
[1734728044122,23.96898609,189.99,189.92,23.96898609]
[1734728044558,23.96898609,190.03,189.94,23.96898609]
[1734728044723,23.96898609,190.03,189.95,1.6252]
[1734728044927,23.96898609,190.01,189.95,1.6252]
[1734728045552,23.96898609,190.03,189.95,1.6252]
[1734728045859,23.96898609,190.03,189.96,23.96898609]
[1734728046066,23.96898609,190.03,189.95,1.6252]
[1734728046662,23.96898609,190.01,189.95,1.6252]
[1734728046861,23.96898609,190.03,189.95,1.6252]
[1734728047332,23.96898609,190.01,189.95,1.6252]
[1734728048053,23.96898609,190.03,189.95,1.6252]
[1734728048355,23.96898609,190.05,189.96,23.96898609]
[1734728048526,23.96898609,190.11,190.02,23.96898609]
[1734728048723,16.63016097,190.11,190.03,16.63016097]
[1734728049159,16.63016097,190.11,190.04,16.63016097]
[1734728050426,16.63016097,190.13,190.06,16.63016097]
[1734728050656,13.1461,190.17,190.06,26.59855623]
[1734728050657,26.59855623,190.14,190.06,26.59855623]
[1734728051546,26.59855623,190.16,190.08,26.59855623]
[1734728052070,8.31831064,190.24,190.12,26.59855623]
[1734728052071,27.84351064,190.24,190.12,26.59855623]
[1734728052240,27.84351064,190.24,190.1,1.624]
[1734728052241,26.59855623,190.22,190.14,26.59855623]
[1734728052564,26.59855623,190.22,190.1,1.624]
[1734728052565,26.59855623,190.22,190.15,26.59855623]
[1734728052740,26.59855623,190.22,190.14,26.59855623]
[1734728053435,26.59855623,190.22,190.15,26.59855623]
[1734728054160,26.59855623,190.22,190.14,26.59855623]
[1734728054545,26.59855623,190.2,190.12,26.59855623]
[1734728055067,26.59855623,190.22,190.14,26.59855623]
[1734728055635,26.59855623,190.24,190.16,26.59855623]
[1734728056164,26.59855623,190.23,190.16,26.59855623]
[1734728057631,26.59855623,190.21,190.14,26.59855623]
[1734728058371,26.59855623,190.23,190.16,26.59855623]
[1734728060058,13.1392,190.27,190.14,26.59855623]
[1734728060059,26.59855623,190.21,190.14,26.59855623]
[1734728060365,26.59855623,190.21,190.12,26.59855623]
[1734728062064,26.59855623,190.21,190.14,26.59855623]
[1734728063365,26.59855623,190.23,190.14,26.59855623]
[1734728063863,26.59855623,190.23,190.1,14.7747]
[1734728063864,26.59855623,190.15,190.1,1.624]
[1734728064259,26.59855623,190.17,190.1,1.624]
[1734728065044,26.59855623,190.15,190.07,26.59855623]
[1734728065366,26.59855623,190.13,190.05,28.18125623]
[1734728066755,26.59855623,190.11,190.05,1.5827]
[1734728066956,26.59855623,190.11,190.01,28.21705623]
[1734728067152,26.59855623,190.09,190.01,28.21705623]
[1734728067464,26.59855623,190.07,190.01,1.6185]
[1734728068553,26.59855623,190.09,190.01,28.21705623]
[1734728069065,26.59855623,190.09,190.01,1.6185]
[1734728069370,26.59855623,190.11,190.03,26.59855623]
[1734728069871,26.59855623,190.13,190.05,26.59855623]
[1734728070366,26.59855623,190.17,190.09,26.59855623]
[1734728070758,26.59855623,190.15,190.07,26.59855623]
[1734728070957,26.59855623,190.15,190.09,26.59855623]
[1734728071156,19.2644,190.19,190.02,20.0]
[1734728071157,26.59855623,190.1,190.02,20.0]
[1734728071361,26.59855623,190.1,190.02,46.59855623]
[1734728071664,26.59855623,190.1,190.04,26.59855623]
[1734728072168,26.59855623,190.12,190.04,26.59855623]
[1734728074867,26.59855623,190.14,190.06,26.59855623]
[1734728077055,26.59855623,190.16,190.08,26.59855623]
[1734728077948,26.59855623,190.14,190.06,46.59855623]
[1734728078682,16.62328909,190.14,190.06,36.62328909]
[1734728079972,6.1196,190.19,190.1,16.62328909]
[1734728080274,16.62328909,190.21,190.14,16.62328909]
[1734728080495,16.62328909,190.21,190.1,1.5437]
[1734728080496,16.62328909,190.19,190.1,18.16698909]
[1734728080678,26.58862522,190.18,190.1,28.13232522]
[1734728081051,26.58862522,190.2,190.12,26.58862522]
[1734728081376,26.58862522,190.22,190.14,26.58862522]
[1734728081672,26.58862522,190.2,190.12,26.58862522]
[1734728088032,6.2867,190.24,190.1,28.13232522]
[1734728088033,26.58862522,190.18,190.1,28.13232522]
[1734728089077,13.1438,190.21,190.1,28.13232522]
[1734728089285,26.58862522,190.18,190.1,28.13232522]
[1734728089499,26.58862522,190.16,190.1,1.5437]
[1734728089794,26.58862522,190.14,190.06,26.58862522]
[1734728091384,26.58862522,190.18,190.1,26.58862522]
[1734728092497,26.58862522,190.2,190.12,26.58862522]
[1734728092998,26.58862522,190.2,190.13,4.14350897]
[1734728093570,26.58862522,190.2,190.14,9.36640989]
[1734728094196,26.58862522,190.2,190.15,4.14350897]
[1734728094695,26.58862522,190.2,190.16,4.14350897]
[1734728095390,26.58862522,190.2,190.14,4.14350897]
[1734728095969,26.58862522,190.18,190.14,4.14350897]
[1734728096194,26.58862522,190.2,190.15,4.14350897]
[1734728096661,26.58862522,190.2,190.12,26.58862522]
[1734728097204,26.58862522,190.2,190.13,4.23524546]
[1734728097866,26.58862522,190.2,190.14,4.23524546]
[1734728098580,26.58862522,190.2,190.15,4.23524546]
[1734728099080,26.58862522,190.2,190.13,4.23524546]
[1734728100405,26.58862522,190.14,190.13,4.23524546]
[1734728100611,13.1434,190.21,190.13,4.23524546]
[1734728100909,13.1434,190.21,190.1,16.61376869]
[1734728100910,16.61376869,190.2,190.1,16.61376869]
[1734728101070,16.61376869,190.17,190.08,16.61376869]
[1734728101272,16.61376869,190.15,190.06,20.84901415]
[1734728101506,16.61376869,190.13,190.05,1.5179]
[1734728101870,16.61376869,190.13,190.06,16.61376869]
[1734728102373,16.61376869,190.13,190.05,1.5179]
[1734728102571,16.61376869,190.13,190.07,4.23765191]
[1734728102772,16.61376869,190.15,190.07,4.23765191]
[1734728103391,16.61376869,190.13,190.07,4.23765191]
[1734728103774,16.61376869,190.09,190.0,1.612]
[1734728103988,16.61376869,190.06,190.0,1.612]
[1734728104191,16.61376869,190.04,189.97,8.23589453]
[1734728104494,16.61376869,190.0,189.93,8.23589453]
[1734728104704,16.61376869,189.98,189.93,8.23589453]
[1734728105001,16.61376869,189.96,189.93,8.23589453]
[1734728105314,16.61376869,190.0,189.93,4.13839051]
[1734728105608,16.61376869,190.04,189.96,16.61376869]
[1734728105993,16.61376869,190.08,190.0,16.61376869]
[1734728106297,16.61376869,190.1,190.02,16.61376869]
[1734728106679,8.04,190.14,189.98,23.776884]
[1734728106680,16.61376869,190.13,190.05,16.61376869]
[1734728106890,16.61376869,190.14,190.06,16.61376869]
[1734728107475,6.1462,190.18,190.02,6.3835]
[1734728107476,16.61376869,190.16,190.08,16.61376869]
[1734728108377,16.61376869,190.16,190.09,1.6023]
[1734728108713,6.1462,190.18,190.02,7.17247311]
[1734728108714,26.61085531,190.1,190.04,1.6023]
[1734728110607,26.61085531,190.06,189.99,1.5796]
[1734728111185,26.61085531,190.08,190.0,26.61085531]
[1734728111815,26.61085531,190.06,189.99,1.5796]
[1734728112184,26.61085531,190.1,189.94,28.16705531]
[1734728112185,26.61085531,190.02,189.94,28.16705531]
[1734728112688,26.61085531,190.0,189.94,1.5562]
[1734728112886,26.61085531,190.0,189.92,26.61085531]
[1734728113409,26.61085531,189.98,189.9,26.61085531]
[1734728114382,26.61085531,190.0,189.92,26.61085531]
[1734728114996,6.5291,190.08,189.9,26.61085531]
[1734728114997,26.61085531,189.98,189.9,26.61085531]
[1734728115210,26.61085531,189.96,189.89,1.516]
[1734728115522,26.61085531,189.98,189.9,26.61085531]
[1734728116915,26.61085531,190.0,189.92,26.61085531]
[1734728117126,26.61085531,190.02,189.94,26.61085531]
[1734728117288,26.61085531,190.02,189.89,2.30558382]
[1734728117289,26.61085531,190.0,189.93,20.0]
[1734728117700,26.61085531,190.0,189.92,26.61085531]
[1734728118712,26.61085531,189.98,189.9,50.38773931]
[1734728119293,26.61085531,189.98,189.9,26.61085531]
[1734728120716,12.30908471,190.08,189.89,1.516]
[1734728120717,26.61085531,189.94,189.89,1.516]
[1734728120911,26.61085531,190.0,189.92,26.61085531]
[1734728121101,26.61085531,190.02,189.94,26.61085531]
[1734728121490,26.61085531,190.02,189.96,26.61085531]
[1734728122128,26.61085531,190.02,189.94,26.61085531]
[1734728125028,26.61085531,190.06,189.98,26.61085531]
[1734728125827,26.61085531,190.06,189.98,28.16165531]
[1734728126309,6.6396,190.08,189.98,1.5508]
[1734728126507,26.61085531,190.05,189.98,1.5508]
[1734728127604,26.61085531,190.05,189.98,28.16165531]
[1734728128600,26.61085531,190.07,189.98,28.16165531]
[1734728128802,26.61085531,190.09,190.0,26.61085531]
[1734728129317,26.61085531,190.03,189.96,26.61085531]
[1734728131412,26.61085531,190.05,189.98,26.61085531]
[1734728131822,26.61085531,190.07,189.98,26.61085531]
[1734728133920,26.61085531,190.07,190.0,26.61085531]
[1734728135351,26.61085531,190.09,190.02,26.61085531]
[1734728135523,26.61085531,190.11,190.02,26.61085531]
[1734728136651,16.62923236,190.11,190.03,16.62923236]
[1734728139248,16.62923236,190.11,190.03,18.19543236]
[1734728139451,23.20923236,190.13,190.05,16.62923236]
[1734728139823,16.62923236,190.09,189.99,1.5662]
[1734728140020,16.62923236,190.07,189.99,1.5662]
[1734728140225,16.62923236,190.07,189.97,6.479]
[1734728140226,16.62923236,190.05,189.96,16.62923236]
[1734728140427,16.62923236,190.03,189.96,16.62923236]
[1734728141944,16.62923236,190.07,189.98,16.62923236]
[1734728142134,16.62923236,190.09,190.02,16.62923236]
[1734728142532,16.62923236,190.11,190.04,16.62923236]
[1734728142730,6.58,190.13,190.04,16.62923236]
[1734728142731,16.62923236,190.12,190.04,16.62923236]
[1734728142947,16.62923236,190.13,190.05,16.62923236]
[1734728144646,26.60602634,190.11,190.04,1.5713]
[1734728145666,26.60602634,190.13,190.05,26.60602634]
[1734728145850,26.60602634,190.11,190.03,26.60602634]
[1734728146863,26.60602634,190.13,190.05,26.60602634]
[1734728147249,26.60602634,190.15,190.07,26.60602634]
[1734728149036,26.60602634,190.17,190.09,26.60602634]
[1734728150860,13.1435,190.21,190.07,1.5645]
[1734728150861,13.1435,190.21,190.11,26.60602634]
[1734728151041,26.60602634,190.2,190.11,26.60602634]
[1734728153265,26.60602634,190.15,190.08,26.60602634]
[1734728153563,19.6365,190.22,190.08,26.60602634]
[1734728153754,26.60602634,190.17,190.1,26.60602634]